Cogmind - Beta 12 @@@ ROGUE MODE // 2023.03.22 @ 22:42:57 Player: lyrabold Result: Destroyed by G-34 Mercenary with Small Laser Performance ------------- Evolutions (1) 500 Regions Visited (2) 400 Robots Destroyed (0) 0 Value Destroyed (0) 0 Prototype IDs (0) 0 Alien Tech Used (0) 0 Bonus (200) 200 TOTAL SCORE: 1100 Bonus ------- Pacifist 200 Cogmind --------- Core Integrity 0/400 Matter 300/300 Energy 100/100 System Corruption 0% Temperature Cool (12) Movement Core (50) Location -9/Materials Parts ------- > --- POWER (1) -------- (None) > --- PROPULSION (3) --- (None) > --- UTILITY (3) ------ Signal Interpreter > --- WEAPON (2) ------- (None) > --- INVENTORY (5) ---- Improved Flight Unit Medium Armor Plating Plasma Cutter Peak State ------------ > --- POWER ------------ (None) > --- PROPULSION ------- Light Treads Light Treads Improved Treads > --- UTILITY ---------- Signal Interpreter > --- WEAPON ----------- (None) > --- INVENTORY -------- Medium Armor Plating Plasma Cutter [Rating: 5] Favorites ----------- Power None Propulsion Light Treads Treads Light Treads Utility Signal Interpreter Processor Signal Interpreter Weapon None Build | -11 -10 -9 ------- Run | Jun Mat Mat Slots Evolved 2 | . . 2 Power . | . . . Propulsion 1 | . . 1 Utility 1 | . . 1 Weapon . | . . . Parts Attached 4 | 2 . 2 Power . | . . . Engine . | . . . Core . | . . . Reactor . | . . . Propulsion 3 | 2 . 1 Treads 3 | 2 . 1 Leg . | . . . Wheel . | . . . Hover . | . . . Flight . | . . . Utility 1 | . . 1 Device . | . . . Storage . | . . . Processor 1 | . . 1 Hackware . | . . . Protection . | . . . Artifact . | . . . Weapon . | . . . Energy Gun . | . . . Energy Cannon . | . . . Ballistic Gun . | . . . Ballistic Cannon . | . . . Launcher . | . . . Special Weapon . | . . . Impact Weapon . | . . . Slashing Weapon . | . . . Piercing Weapon . | . . . Special Melee Weapon . | . . . Unidentified Prototypes . | . . . Parts Lost 3 | . . 3 Power . | . . . Propulsion 3 | . . 3 Utility . | . . . Weapon . | . . . Highest Loss Streak 2 | . . 2 To Critical Strikes . | . . . Average Slot Usage (%) 31 | . 28 32 Treads 25 | . 28 24 Processor 5 | . . 7 Naked Turns . | . . . Heaviest Build . | . . . Greatest Support 3 | 3 3 3 Greatest Overweight (x) . | . . . Average Overweight (x) . | . . . Largest Inventory Capacity 5 | 5 5 5 Average Capacity 5 | 5 5 5 Most Carried 3 | . . 3 Average Carried 1 | . . 2 Final Capacity 5 | 5 5 5 Final Carried 3 | . . 3 Class Distribution -------------------- 100% | Mutant Dominant Class ---------------- Mutant | -10/Materials Mutant | -9/Materials Resources | -11 -10 -9 ----------- Run | Jun Mat Mat Matter Collected 220 | 220 . . Remotely . | . . . Salvage Created . | . . . Parts . | . . . Haulers Intercepted . | . . . Recyclers Shooed . | . . . Parts Field Recycled . | . . . Retrieved Matter . | . . . Parts Self-Destructed . | . . . Prevented . | . . . Kills | -11 -10 -9 ------- Run | Jun Mat Mat Combat Hostiles Destroyed . | . . . Classes Destroyed . | . . . Best Kill Streak . | . . . Combat Bots Only . | . . . Max Kills in Single Turn . | . . . Gunslinging . | . . . Exploded . | . . . Melee . | . . . Uniques/NPCs Destroyed . | . . . Combat | -11 -10 -9 -------- Run | Jun Mat Mat Damage Taken 890 | . 105 785 Core 438 | . 35 403 Absorbed by Shields . | . . . Core Remaining (%) 93 | 100 86 . Volleys Fired . | . . . Largest . | . . . Hottest . | . . . Shots Fired . | . . . Gun . | . . . Cannon . | . . . Launcher . | . . . Special . | . . . Kinetic . | . . . Thermal . | . . . Explosive . | . . . Electromagnetic . | . . . Robot Hit Streak . | . . . Robot Miss Streak . | . . . Penetration Max . | . . . Secondary Targets . | . . . Shots Hit Robots . | . . . Core Hits 2 | . 1 1 Critical Kills . | . . . Critical Parts Destroyed . | . . . Critical Strikes . | . . . Melee Attacks . | . . . Impact . | . . . Slashing . | . . . Piercing . | . . . Sneak Attacks . | . . . Combat Hostiles . | . . . Follow-up Attacks . | . . . Damage Inflicted 56 | . 22 34 Guns . | . . . Cannons . | . . . Explosions . | . . . Melee . | . . . Ramming 56 | . 22 34 Kinetic . | . . . Thermal . | . . . Explosive . | . . . Electromagnetic . | . . . Impact . | . . . Slashing . | . . . Piercing . | . . . Highest Corruption . | . . . Average Corruption . | . . . Corruption Purged . | . . . Corruption Blocked . | . . . Overload Shots . | . . . Overflow Damage . | . . . Projectiles . | . . . Explosions . | . . . Melee . | . . . Knockbacks 1 | . . 1 Impact 1 | . . 1 Kinetic . | . . . Secondary . | . . . Self-Inflicted Damage 24 | . 10 14 Shots . | . . . Rammed 15 | . 4 11 Targets Rammed 15 | . 4 11 Kicked . | . . . Crushed . | . . . Highest Temperature . | . . . Average Temperature . | . . . Received Heat Transfer 279 | . 48 231 Siege Activations . | . . . Robots Corrupted . | . . . Combat Hostiles . | . . . Parts Fried . | . . . Impact Corruptions . | . . . Robots Melted . | . . . Combat Hostiles . | . . . Parts Melted . | . . . Heat Transferred . | . . . Parts Sabotaged . | . . . Parts Stolen . | . . . Parts Stripped . | . . . Power Chain Reactions . | . . . Missiles Intercepted . | . . . Alert | -11 -10 -9 ------- Run | Jun Mat Mat Peak Influence 232 | . 23 232 Initial 9 | . . 9 Average 47 | . 9 69 Maximum Alert Level 1 | . . 1 Low Security (%) 99 | 100 100 99 Level 1 . | . . . Level 2 . | . . . Level 3 . | . . . Level 4 . | . . . Level 5 . | . . . High Security . | . . . Max Security . | . . . Squads Dispatched 6 | . 1 5 Investigation 5 | . 1 4 Extermination . | . . . Reinforcement 1 | . . 1 Assault . | . . . Garrison . | . . . Intercept . | . . . Searches Triggered . | . . . Construction Impeded . | . . . Haulers Reinforced . | . . . Active Scanning Responses . | . . . Cargo Convoy Interrupts . | . . . Stealth | -11 -10 -9 --------- Run | Jun Mat Mat Distress Signals 2 | . . 2 Communications Jammed . | . . . Distress Signals . | . . . Times Spotted 35 | . 5 30 Peak Tracking Total 22 | . 5 22 Tactical Retreats 4 | . . 4 Traps | -11 -10 -9 ------- Run | Jun Mat Mat Traps Triggered 1 | . 1 . Indirectly . | . . . Trap Hack Attempts . | . . . Triggered . | . . . Disarmed . | . . . Reprogrammed . | . . . Reused . | . . . Traps Extracted . | . . . Installed . | . . . Triggered . | . . . Machines | -11 -10 -9 ---------- Run | Jun Mat Mat Machines Disabled . | . . . Max in Single Turn . | . . . Machines Repaired . | . . . Machines Sabotaged . | . . . Overloaded Fab Kills . | . . . Hacking | -11 -10 -9 --------- Run | Jun Mat Mat Machines Accessed 7 | . 1 6 Terminals 7 | . 1 6 Fabricators . | . . . Repair Stations . | . . . Recycling Units . | . . . Scanalyzers . | . . . Garrison Access . | . . . Total Hacks 21 | . 4 17 Successful 3 | . 1 2 Failed 18 | . 3 15 Catastrophic 10 | . . 10 Database Lockouts . | . . . Manual 16 | . . 16 Terminals 21 | . 4 17 Fabricators . | . . . Repair Stations . | . . . Recycling Units . | . . . Scanalyzers . | . . . Garrison Access . | . . . Terminal Hacks 3 | . 1 2 Level Access Points 1 | . 1 . Branch Access Points 1 | . . 1 Zone Layout 1 | . . 1 Fabricator Hacks . | . . . Repair Station Hacks . | . . . Recycling Unit Hacks . | . . . Scanalyzer . | . . . Garrison Access Hacks . | . . . Unauthorized Hacks . | . . . Terminals . | . . . Fabricators . | . . . Repair Stations . | . . . Recycling Units . | . . . Scanalyzers . | . . . Garrison Access . | . . . Data Cores Recovered . | . . . Used . | . . . Hacking Detections 7 | . 1 6 Full Trace Events 7 | . 1 6 Feedback Events . | . . . Feedback Blocked . | . . . Robot Schematics Acquired . | . . . Robots Built . | . . . Authchips . | . . . Time . | . . . Total Robot Build Rating . | . . . Part Schematics Acquired . | . . . Parts Built . | . . . Authchips . | . . . Time . | . . . Total Part Build Rating . | . . . Parts Repaired . | . . . Time . | . . . Parts Recycled . | . . . Recycled Matter . | . . . Retrieved Matter . | . . . Retrieved Components . | . . . Parts Scanalyzed . | . . . Part Schematics Acquired . | . . . Parts Damaged . | . . . Bothacking | -11 -10 -9 ------------ Run | Jun Mat Mat Used RIF Installer . | . . . Robots Hacked . | . . . Non-combat . | . . . Combat . | . . . Robot Hacks Applied . | . . . Relay Couplers Released . | . . . Fabnet Peak Effective % . | . . . Robots Rewired . | . . . Allies Hacked . | . . . Hacks Repelled . | . . . Allies | -11 -10 -9 -------- Run | Jun Mat Mat Total Allies . | . . . Largest Group . | . . . Highest-Rated Group . | . . . Highest-Rated Ally . | . . . Total Orders . | . . . Ally Attacks . | . . . Total Damage . | . . . Kills . | . . . Allies Corrupted . | . . . Allies Melted . | . . . Intel | -11 -10 -9 ------- Run | Jun Mat Mat Robot Analysis Total . | . . . Derelict Logs Recovered . | . . . Drone Launches . | . . . Drone Recoveries . | . . . Exploration | -11 -10 -9 ------------- Run | Jun Mat Mat Turns Passed 196 | 16 51 129 Spaces Moved 345 | 27 93 225 Core 345 | 27 93 225 Treads . | . . . Legs . | . . . Wheels . | . . . Hover . | . . . Flight . | . . . Fastest Speed 50 | 50 50 50 Average Speed 50 | 50 50 50 Slowest Speed 50 | 50 50 50 Overloaded Moves . | . . . Propulsion Burnouts . | . . . Robots Hopped . | . . . Cave-ins Triggered . | . . . Exploration Rate (%) 25 | 3 31 42 Regions Visited 2 Branch Regions . Pre-discovered Areas . | . . . Known Exits Taken 1 | . 1 . Unknown Exits Taken 1 | 1 . . Scrap Searched . | . . . Spaces Dug . | . . . Terrain Destroyed . | . . . Melee . | . . . Projectile . | . . . AOE . | . . . Terrain Rammed . | . . . Walls Destroyed . | . . . Machines Disabled . | . . . Actions | -11 -10 -9 --------- Run | Jun Mat Mat Total 365 | 28 96 241 Wait . | . . . Move 343 | 26 92 225 Hop . | . . . Pick Up 3 | . . 3 Fast Attach 4 | 2 . 2 Attach . | . . . Detach . | . . . Swap . | . . . Drop . | . . . Fire . | . . . Melee . | . . . Ram 15 | . 4 11 Kick . | . . . Crush . | . . . Escape Stasis . | . . . Rewire . | . . . Trap . | . . . Miscellaneous . | . . . Route ------- -11/Junkyard -10/Materials (discovered 3 exits: *Mat x3) -9/Materials (discovered 2 exits: [*Mat] / *Min) History --------- Turn | Location | Event 3 | -11/Junkyard | Discovered new exit (range 15) 17 | -11/Junkyard | Entered Materials 23 | -10/Materials | Identified exit to Materials 68 | -10/Materials | Entered another Materials area 68 | -9/Materials | Evolved 2 slots: Propulsion x1, Utility x1 109 | -9/Materials | Identified exit to Mines 178 | -9/Materials | Core integrity fell below 50% 195 | -9/Materials | Discovered new exit (range 9) 196 | -9/Materials | Core integrity fell below 20% 197 | -9/Materials | Destroyed by G-34 Mercenary with Small Laser Last Messages --------------- 00180_ ALERT: Hostiles spotted, dispatching reinforcements to Terminal M007. 00185_ Connecting with Terminal... 00185_ ALERT: Suspicious activity at Terminal M006. Dispatching Investigation squad. 00186_ Imp. Treads destroyed. 00186_ K-01 Serf collects debris. 00187_ W-16 Scout sends out distress signal. 00191_ K-01 Serf collects debris. 00192_ Slammed into G-34 Mercenary. 00193_ C-30 ARC bursts open, deploying its payload. 00193_ S-10 Pest unfolds itself. 00193_ K-01 Serf collects debris. 00194_ Slammed into G-34 Mercenary. 00194_ K-01 Serf collects debris. 00195_ EXIT=FOUND 00195_ Slammed into G-34 Mercenary. 00196_ K-01 Serf collects debris. 00196_ Slammed into G-34 Mercenary. 00197_ G-34 Mercenary knocked back. Map ----- +----------------------------------------------------+ | #?????????????# #?????????????????????????? | | #?????????????# #?????????????????????????? | | #???#######???# #?????????????????????????? | | #???# T #???# ##########????????????????? | | #???# #???# # T #????????????????? | | #???# #???# # """ #????????????????? | | #???# ! #???# + """ #????????????????? | | ########* #???# # """ !#????????????????? | | # / #???# # ????????????????? | | / #???# # """ ##???????????????? | | # #???# # """ #????????????????? | | # """ #???# # = """ #????????????????? | | # """ #???# # #????????????????? | | # """ #???# ########??????????????????? | | # #???# #?????????????????????????? | | #### ##???# ##########????????????????? | | " ## #??###????# # ????????????????? | | "" ## #?????????# # """ """ #???????????????? | | " ## #?????????# # """ """ #???????????????? | | #?+#?????????# #g""" """ #???????????????? | | #????????????# %/% #???????????????? | | " #????????????# #gss #???????????????? | | "" #????????????# # s #???????????????? | | " #????????????# #%%k #???????????????? | | +????????????# ##s########???????????????? | | #????????????# k@#??????????????????????? | | #????????????# gg#??????????????????????? | | #????????????# #g g??????????????????????? | | #????????????# # ??????????????????????? | | #????????????# # ?????????????????????? | | #????????????# # ?????????????????????? | | #????????????# ##### < ##????????????????????? | | #????????????# ????# #?????????????????????? | | #????????????# ????#####?????????????????????? | | #????????????????????????????????????????????? | | #????????????????????????????????????????????? | | #????????????????????????????????????????????? | | #####????????????????????????????????????????????? | | ?????????????????????????????????????????????????? | | ?????????????????????????????????????????????????? | | ?????????????????????????????????????????????????? | | ?????????????????????????????????????????????????? | | | | | | | | | | | | | | | | | +----------------------------------------------------+ Best States ------------- Heat Dissipation 28 Energy Generation 5 Energy Capacity 100 Matter Stores 300 Matter Capacity 300 Sight Range 16 Terrain Scan Density 10 Evasion (%) 50 Item Schematics ----------------- None Robot Schematics ------------------ None Fabricated ------------ Nothing Alien Tech Used ----------------- None Achievements -------------- None Challenges ------------ None Game ------ Seed BiocellPropulsionExpander Manual? 0 Play Time 00:07:06 Cumulative 232.1 hours Start 2023.03.22 @ 22:38:41 End 2023.03.22 @ 22:42:57 Sessions 1 Manual Loads 0 Difficulty Rogue Special Mode None Game No. 130 Rogue 130 Adventurer 0 Explorer 0 Win Type - Total 10 Types 6/0/1/2/0/0/1/0/0 Lore% 77 Gallery% 81 Achievement% 74 Wizard Run 0 Options --------- ASCII 0 Keyboard 1 Movement Arrows Keybinds 0 Fullscreen 2 Font 18/X11 Map View 76x50 Tactical HUD 1 Map Filters NONE Filters NONE Steam 1 RUN: e0009b02-b6c1-4c62-addc-88bd41aebed8